bitfinex-derivatives/quotes_ETHF0:USTF0_20250403
["timestamp","ask_amount","ask_price","bid_price","bid_amount"]
[1743693688682,2.61823817,1768.9,1768.8,1.4119]
[1743693689892,1.13102,1768.8,1768.7,3.2078]
[1743693690189,2.60982,1768.8,1768.7,3.2078]
[1743693690491,3.30292,1768.8,1768.7,3.2078]
[1743693690886,3.30292,1768.8,1768.5,1.4365]
[1743693691093,1.13121,1768.5,1768.4,3.2078]
[1743693693190,1.13121,1768.5,1768.1,1.82582]
[1743693693191,1.13141,1768.2,1768.1,0.6944]
[1743693693397,2.8288,1768.1,1767.7,3.2078]
[1743693693598,4.3175,1768.1,1767.8,40.8]
[1743693693888,1.1316,1767.9,1767.8,40.8]
[1743693694289,4.485,1767.9,1767.5,3.2078]
[1743693694490,4.485,1767.9,1767.7,4.33949]
[1743693694794,0.00847817,1767.9,1767.8,1.13166]
[1743693694990,1.14007817,1767.9,1767.8,3.36166]
[1743693695194,1.14007817,1767.9,1767.8,2.23]
[1743693696294,0.00847817,1767.9,1767.8,3.36166]
[1743693696593,0.00847817,1767.9,1767.8,5.86166]
[1743693696801,0.00847817,1767.9,1767.8,6.59306]
[1743693696992,0.00847817,1767.9,1767.8,4.09306]
[1743693697188,0.00847817,1767.9,1767.8,6.59306]
[1743693697600,1.13138,1768.3,1768.2,1.13137]
[1743693697799,1.1313,1768.4,1768.3,1.13128]
[1743693698000,1.1313,1768.4,1768.3,3.95778]
[1743693698888,1.1313,1768.4,1768.3,1.3931]
[1743693699094,1.13134,1768.3,1768.2,3.21627817]
[1743693699289,1.86864,1768.3,1768.2,0.00847817]
[1743693699495,1.86864,1768.3,1768.2,3.21627817]
[1743693699691,1.13134,1768.3,1768.2,0.00847817]
[1743693699995,1.13134,1768.3,1768.2,1.40157817]
[1743693700593,1.13134,1768.3,1768.2,4.60937817]
[1743693701603,1.4034,1768.4,1768.2,4.60937817]
[1743693701805,0.00847817,1768.5,1768.3,1.4012]
[1743693701992,1.13128,1768.4,1768.3,2.5325]
[1743693702697,1.13973817,1768.5,1768.4,1.13128]
[1743693702902,0.00847817,1768.5,1768.4,4.33908]
[1743693703103,0.00847817,1768.5,1768.4,5.10248]
[1743693703303,0.00847817,1768.5,1768.4,5.87078]
[1743693703501,1.13968817,1768.5,1768.4,5.87078]
[1743693703899,4.49247817,1768.5,1768.2,0.00847817]
[1743693704101,1.13134,1768.3,1768.2,0.00847817]
[1743693704799,2.63864,1768.3,1768.2,0.00847817]
[1743693705104,5.13864,1768.3,1768.2,0.00847817]
[1743693705300,2.63864,1768.3,1768.2,0.00847817]
[1743693706302,5.13864,1768.3,1768.2,0.00847817]
[1743693706702,1.1316,1767.9,1767.8,5.824]
[1743693706901,1.13166,1767.8,1767.7,40.8]
[1743693707300,2.2876,1768.0,1767.7,40.8]
[1743693707502,4.484,1768.1,1767.9,4.3394]
[1743693707503,5.61553,1768.1,1767.9,4.3394]
[1743693707702,1.13153,1768.0,1767.9,3.2078]
[1743693708604,2.65543,1768.0,1767.9,3.2078]
[1743693709304,1.13163,1767.9,1767.7,45.13949]
[1743693709607,1.13166,1767.8,1767.7,45.13953]
[1743693709807,1.13161,1767.9,1767.7,44.0078]
[1743693709998,2.65547,1768.0,1767.8,1.13166]
[1743693710200,2.65547,1768.0,1767.9,3.2078]
[1743693710399,2.65547,1768.0,1767.9,4.3394]
[1743693710900,2.65547,1768.0,1767.9,3.2078]
[1743693711304,5.6155,1768.1,1767.9,3.2078]
[1743693711603,5.6155,1768.1,1768.0,1.13153]
[1743693711809,1.1315,1768.1,1768.0,1.13153]
[1743693712198,2.83652817,1768.5,1768.0,2.5]
[1743693712505,1.13128,1768.4,1768.3,3.2078]
[1743693712707,2.62128,1768.4,1768.3,3.2078]
[1743693712909,3.38578,1768.4,1768.3,3.2078]
[1743693713912,1.89578,1768.4,1768.3,4.33914]
[1743693714103,1.13128,1768.4,1768.3,3.2078]
[1743693714304,2.54518,1768.4,1768.3,3.2078]
[1743693714504,3.31158,1768.4,1768.3,3.2078]
[1743693715400,1.13128,1768.4,1768.3,3.2078]
[1743693715809,2.54518,1768.4,1768.3,3.2078]
[1743693716110,7.02818,1768.4,1768.3,3.2078]
[1743693717507,7.02818,1768.4,1768.3,4.33914]
[1743693717702,6.32903817,1768.5,1768.3,3.2078]
[1743693717906,4.49047817,1768.5,1768.4,1.13128]
[1743693718309,0.00847817,1768.5,1768.4,1.84598]
[1743693718709,1.13968817,1768.5,1768.4,1.84598]
[1743693718910,0.00847817,1768.5,1768.4,1.84598]
[1743693719216,1.13968817,1768.5,1768.4,0.7147]
[1743693719819,1.13968817,1768.5,1768.4,1.84598]
[1743693720627,1.13968817,1768.5,1768.4,0.7147]
[1743693720815,1.13128,1768.4,1768.3,3.2078]
[1743693721011,2.61428,1768.4,1768.3,3.2078]
[1743693721415,1.13141,1768.2,1768.1,3.2078]
[1743693721713,1.13152,1768.1,1767.9,3.9489]
[1743693721916,1.13153,1768.0,1767.9,5.08043]
[1743693722118,1.13152,1768.1,1768.0,1.13153]
[1743693722314,1.13153,1768.0,1767.9,3.9489]
[1743693722516,2.57193,1768.0,1767.9,3.9489]
[1743693722716,2.57193,1768.0,1767.9,5.0805]
[1743693722917,1.13166,1767.8,1767.7,40.8]
[1743693723514,1.1316,1767.9,1767.8,1.13163]
[1743693723719,1.13166,1767.8,1767.7,40.8]
[1743693724114,1.4404,1768.0,1767.7,40.8]
[1743693724418,4.481,1768.1,1767.9,4.33937]
[1743693724618,1.13153,1768.0,1767.9,4.33937]
[1743693724929,1.13153,1768.0,1767.9,3.2078]
[1743693725118,5.61252,1768.1,1768.0,1.13153]
[1743693725426,1.13153,1768.0,1767.9,4.3394]
[1743693725727,1.1316,1767.9,1767.8,1.13166]
[1743693725921,1.13166,1767.8,1767.7,41.93168]
[1743693726124,1.5256,1768.0,1767.7,41.93168]
[1743693726311,1.13164,1767.9,1767.8,1.4979]
[1743693726514,2.65718,1768.0,1767.8,2.62956]
[1743693726816,1.1316,1767.9,1767.8,1.4979]
[1743693727124,1.1316,1767.9,1767.8,1.13163]
[1743693727325,1.1316,1767.9,1767.7,44.0078]
[1743693727512,1.1316,1767.9,1767.8,1.13166]
[1743693727718,1.13166,1767.8,1767.7,45.13949]
[1743693727916,1.5256,1768.0,1767.7,4.33949]
[1743693728128,1.5256,1768.0,1767.7,4.3395]
[1743693728326,1.13166,1767.8,1767.7,4.3395]
[1743693728627,1.13165,1767.9,1767.7,4.3395]
[1743693728924,7.30922,1767.8,1767.5,3.2078]
[1743693729121,1.13203,1767.3,1767.1,1.83987]
[1743693729421,1.13205,1767.2,1767.1,0.7078]
[1743693729615,0.75707817,1767.4,1767.1,0.7078]
[1743693729815,1.88900817,1767.4,1767.3,3.2078]
[1743693730018,0.00847817,1767.4,1767.3,4.33978]
[1743693730819,0.00847817,1767.4,1767.3,6.83978]
[1743693731419,0.00847817,1767.4,1767.3,4.33978]
[1743693731821,0.00847817,1767.4,1767.3,6.83978]
[1743693732415,0.00847817,1767.4,1767.3,47.63978]
[1743693733322,1.13169,1767.8,1767.5,2.82958]
[1743693733523,1.13169,1767.8,1767.3,47.63978]
[1743693733524,1.5258,1768.0,1767.7,3.2078]
[1743693733716,1.13166,1767.8,1767.7,3.2078]
[1743693736128,5.61066,1767.8,1767.7,3.2078]
[1743693736626,7.04486,1767.8,1767.7,3.2078]
[1743693736819,5.61066,1767.8,1767.7,4.33953]
[1743693737330,0.00847817,1767.9,1767.8,1.13166]
[1743693737529,0.00847817,1767.9,1767.8,1.83506]
[1743693738328,0.00847817,1767.9,1767.8,1.13166]
[1743693738935,0.00847817,1767.9,1767.8,3.63166]
[1743693739131,0.00847817,1767.9,1767.8,4.34486]
[1743693740127,0.00847817,1767.9,1767.8,1.13166]
[1743693740327,1.13166,1767.8,1767.7,5.04287]
[1743693740631,2.58946,1767.8,1767.7,5.04287]
[1743693740824,0.00847817,1767.9,1767.8,1.13166]
[1743693741334,1.14007817,1767.9,1767.8,1.13166]
[1743693741530,0.00847817,1767.9,1767.8,1.13166]
[1743693741731,0.00847817,1767.9,1767.8,3.63166]
[1743693743030,0.00847817,1767.9,1767.8,1.13166]
[1743693743934,0.00847817,1767.9,1767.8,3.63166]
[1743693744231,3.34962,1768.4,1768.3,1.13134]
[1743693744539,2.82697,1769.2,1768.6,2.82788]
[1743693744833,1.13099,1768.9,1768.8,4.33879]
[1743693745132,1.13099,1768.9,1768.8,44.0078]
[1743693745537,1.13099,1768.9,1768.8,45.13882]
[1743693745728,2.60609,1768.9,1768.8,45.13882]
[1743693746231,1.85399817,1769.0,1768.8,44.0078]
[1743693746429,1.85402817,1769.0,1768.8,46.5361]
[1743693746636,3.24456817,1769.0,1768.9,1.3952]
[1743693746831,2.11367817,1769.0,1768.9,2.52616]
[1743693747028,0.00847817,1769.0,1768.9,2.52616]
[1743693747837,0.00847817,1769.0,1768.9,1.3952]
[1743693748031,0.00847817,1769.0,1768.9,2.52616]
[1743693748334,0.7667,1769.4,1769.3,1.1307]
[1743693748537,3.23909,1769.5,1769.4,1.13064]
[1743693748737,2.1085,1769.5,1769.4,1.13064]
[1743693748927,2.1085,1769.5,1769.4,2.52584]
[1743693749934,0.7179,1769.5,1769.4,2.52584]
[1743693750135,0.00847817,1769.6,1769.5,1.13057]
[1743693750331,0.00847817,1769.6,1769.5,4.33837]
[1743693750731,0.00847817,1769.6,1769.5,5.06837]
[1743693750933,0.00847817,1769.6,1769.5,7.56837]
[1743693751134,0.00847817,1769.6,1769.5,6.59017]
[1743693752630,63.06702,1770.3,1770.0,1.13023]
[1743693752631,4.474,1770.1,1770.0,1.13023]
[1743693752935,1.13024,1770.1,1769.9,3.2078]
[1743693753131,1.3926,1770.0,1769.7,1.13042]
[1743693753328,0.7467,1769.9,1769.8,1.13038]
[1743693753543,1.87703,1769.9,1769.7,1.4928]
[1743693753740,1.87703,1769.9,1769.8,3.2078]
[1743693754036,0.7467,1769.9,1769.8,4.33818]
[1743693754233,0.00847817,1770.0,1769.9,1.13032]
[1743693754442,0.00847817,1770.0,1769.9,2.62312]
[1743693755144,1.13876817,1770.0,1769.8,4.33814]
[1743693755440,0.00847817,1770.0,1769.9,1.13032]
[1743693755634,0.00847817,1770.0,1769.9,2.62312]
[1743693756737,0.00847817,1770.0,1769.9,5.12312]
[1743693758545,0.00847817,1770.0,1769.9,1.13032]
[1743693758835,0.00847817,1770.0,1769.8,3.2078]
[1743693759035,0.00847817,1770.0,1769.6,0.00847817]
[1743693759036,1.13045,1769.7,1769.6,0.00847817]
[1743693759242,1.13045,1769.7,1769.4,3.2078]
[1743693759243,1.13067,1769.4,1769.1,2.58979]
[1743693759444,9.44679,1769.6,1769.2,3.2078]
[1743693759646,2.5786,1769.3,1769.2,3.2078]
[1743693759846,1.4479,1769.3,1769.2,4.33857]
[1743693760044,2.5786,1769.3,1769.2,3.2078]
[1743693760344,1.13083,1769.1,1769.0,3.2078]
[1743693760546,5.9189,1769.3,1769.0,3.2078]
[1743693760547,7.04963,1769.3,1769.0,3.2078]
[1743693760743,1.13077,1769.2,1769.1,0.00847817]
[1743693760949,2.57867,1769.2,1769.1,0.00847817]
[1743693762743,1.4479,1769.2,1769.1,1.13930817]
[1743693762941,1.13064,1769.4,1769.1,0.00847817]
[1743693763144,1.1307,1769.3,1769.1,1.13929817]
[1743693763342,2.56747,1769.2,1769.1,0.00847817]
[1743693763948,1.4367,1769.2,1769.1,1.13930817]
[1743693764145,1.4367,1769.2,1769.1,2.56190817]
[1743693764743,2.56739,1769.4,1769.2,1.13071]
[1743693764939,1.1307,1769.3,1769.2,2.60067]
[1743693765139,2.5817,1769.3,1769.2,4.6777]
[1743693765546,1.13077,1769.2,1769.1,0.00847817]
[1743693765850,7.05177,1769.2,1769.1,0.00847817]
[1743693766747,9.55177,1769.2,1769.1,0.00847817]
[1743693767453,7.05177,1769.2,1769.1,0.00847817]
[1743693767651,1.451,1769.2,1769.1,1.13930817]
[1743693768051,3.53926,1769.5,1769.2,1.13071]
[1743693768052,1.13065,1769.4,1769.2,1.13071]
[1743693768348,1.13075,1769.3,1769.1,1.13928817]
[1743693768549,3.53931,1769.5,1769.1,1.13928817]
[1743693768550,2.57547,1769.2,1769.1,1.13928817]
[1743693768754,1.4447,1769.2,1769.1,1.13928817]
[1743693768937,1.13074,1769.3,1769.1,0.00847817]
[1743693769141,1.13074,1769.3,1769.2,1.5221]
[1743693769339,1.13074,1769.3,1769.2,4.7299]
[1743693769937,1.13074,1769.3,1769.2,1.5221]
[1743693770145,1.13074,1769.3,1769.2,4.7299]
[1743693770652,2.57539,1769.4,1769.3,1.1307]
[1743693770843,2.57539,1769.4,1769.3,1.5221]
[1743693771340,1.1307,1769.3,1769.2,4.33857]
[1743693771543,1.13077,1769.2,1769.1,0.00847817]
[1743693771950,1.13077,1769.2,1769.1,1.13929817]
[1743693772154,1.13077,1769.2,1769.1,2.65149817]
[1743693772344,1.13065,1769.4,1769.3,1.13067]
[1743693772545,1.13064,1769.4,1769.3,4.33848]
[1743693772946,2.182,1769.5,1769.4,1.13064]
[1743693773145,2.182,1769.5,1769.1,4.34708817]
[1743693773353,1.13077,1769.2,1769.1,3.21627817]
[1743693774348,2.59996,1769.3,1769.1,3.21627817]
[1743693774646,1.4692,1769.3,1769.2,1.13077]
[1743693774849,1.4692,1769.3,1769.2,2.63427]
[1743693775253,2.5999,1769.3,1769.2,2.63427]
[1743693775448,2.5999,1769.3,1769.2,1.5035]
[1743693775753,2.5999,1769.3,1769.2,2.63427]
[1743693775953,1.4692,1769.3,1769.2,1.5035]
[1743693776146,0.7128,1769.5,1769.4,1.13064]
[1743693776451,2.2063,1769.5,1769.4,1.13064]
[1743693776645,3.33687,1769.5,1769.3,5.84195]
[1743693776850,3.33687,1769.5,1769.4,1.5035]
[1743693777042,1.83217,1769.6,1769.5,1.13057]
[1743693777244,1.13057,1769.5,1769.4,1.5035]
[1743693777453,2.65487,1769.5,1769.4,2.63409]
[1743693777840,0.7016,1769.6,1769.5,1.13057]
[1743693778147,7.12279,1769.7,1769.6,1.13051]
[1743693778552,7.12279,1769.7,1769.6,2.54851]
[1743693778753,2.65479,1769.7,1769.6,2.54851]
[1743693778951,2.82628,1769.6,1769.3,3.2078]
[1743693779149,5.59862,1769.5,1769.4,1.13064]
[1743693779455,1.13064,1769.4,1769.3,4.33847]
[1743693779750,1.5243,1769.4,1769.3,4.33847]
[1743693780047,2.65494,1769.4,1769.3,4.6258]
[1743693780241,2.65494,1769.4,1769.3,1.418]
[1743693780443,1.5243,1769.4,1769.3,5.7565]
[1743693781155,2.65494,1769.4,1769.3,5.7565]
[1743693781448,1.1307,1769.3,1769.2,1.13074]
[1743693781647,2.657,1769.3,1769.2,5.78194]
[1743693782149,4.468,1769.5,1769.4,1.13064]
[1743693782343,5.9933,1769.7,1769.5,1.13054]
[1743693782542,1.4674,1769.8,1769.5,1.4434]
[1743693782746,0.00847817,1770.0,1769.9,1.13032]
[1743693782947,0.00847817,1770.0,1769.9,4.33812]
[1743693783143,0.7249,1770.4,1770.3,1.13006]
[1743693783347,1.13,1770.4,1770.3,45.13786]
[1743693783748,2.65629,1770.5,1770.4,1.13]
[1743693783951,5.64813,1771.0,1770.4,1.13]
[1743693783952,2.82397,1771.1,1770.4,1.4674]
[1743693784255,6.03029,1772.0,1771.0,6.03181]
[1743693784451,2.82277,1771.8,1771.1,1.4674]
[1743693784650,1.12949,1771.2,1771.1,1.4674]
[1743693784850,1.12949,1771.2,1771.1,42.2674]
[1743693785052,7.6738,1771.4,1771.0,3.21627817]
[1743693785250,1.12955,1771.1,1771.0,4.68367817]
[1743693785444,1.12955,1771.1,1771.0,45.48367817]
[1743693786055,1.12955,1771.1,1771.0,40.80847817]
[1743693786849,1.12955,1771.1,1771.0,0.00847817]
[1743693787252,5.59455,1771.1,1771.0,0.00847817]
[1743693787458,7.07755,1771.1,1771.0,0.00847817]
[1743693787647,2.61255,1771.1,1771.0,0.00847817]
[1743693789058,0.7333,1771.4,1771.0,0.00847817]
[1743693789261,1.12955,1771.1,1771.0,3.21627817]
[1743693789457,1.12955,1771.1,1771.0,1.41547817]
[1743693789758,1.483,1771.3,1771.0,1.41547817]
[1743693789759,1.12953,1771.2,1771.0,4.62327817]
[1743693790061,1.483,1771.3,1771.0,5.75287817]
[1743693790251,1.12952,1771.2,1771.0,4.62327817]
[1743693791155,1.483,1771.3,1771.0,4.62327817]
[1743693791357,1.12955,1771.1,1771.0,1.41547817]
[1743693794155,1.12955,1771.1,1771.0,4.62327817]
[1743693794762,1.12955,1771.1,1771.0,0.00847817]
[1743693797165,1.12955,1771.1,1771.0,4.73887817]
[1743693797874,1.12955,1771.1,1771.0,0.00847817]
[1743693798359,1.12955,1771.1,1771.0,1.53107817]
[1743693798558,1.12955,1771.1,1771.0,0.00847817]
[1743693798959,1.12955,1771.1,1771.0,2.59999817]
[1743693799160,1.12955,1771.1,1771.0,1.47037817]
[1743693799765,1.483,1771.3,1771.1,1.12954]
[1743693799966,1.1295,1771.2,1771.0,4.67817817]
[1743693800363,1.1295,1771.2,1771.1,1.12955]
[1743693800662,2.61248,1771.3,1771.1,1.12955]
[1743693800863,2.61248,1771.3,1771.2,1.4619]
[1743693801259,1.12955,1771.1,1771.0,5.08089817]
[1743693801569,1.483,1771.3,1771.0,5.41317817]
[1743693801765,1.483,1771.3,1771.1,1.12964]
[1743693802063,1.483,1771.3,1771.0,3.21627817]
[1743693802064,1.12967,1771.1,1771.0,3.21627817]
[1743693802466,1.12965,1771.2,1771.0,4.34600817]
[1743693802764,2.53387,1771.1,1771.0,3.21627817]
[1743693802953,2.53387,1771.1,1771.0,0.00847817]
[1743693803157,6.99287,1771.1,1771.0,0.00847817]
[1743693803665,9.1304,1771.1,1770.4,3.2078]
[1743693803961,9.1304,1771.1,1770.2,5.824]
[1743693803962,1.13018,1770.3,1770.2,5.824]
[1743693804165,1.13043,1769.9,1769.8,9.0318]
[1743693804355,1.1304,1770.0,1769.8,2.6671]
[1743693804755,0.00847817,1770.1,1769.8,1.5366]
[1743693804953,0.00847817,1770.1,1769.9,2.52532]
[1743693804954,1.13879817,1770.1,1769.9,2.52532]
[1743693805167,0.00847817,1770.1,1769.9,2.52532]
[1743693805466,0.00847817,1770.1,1770.0,1.13037]
[1743693805665,0.00847817,1770.1,1770.0,1.3949]
[1743693805867,2.67017817,1770.1,1770.0,1.3949]
[1743693806066,1.53987817,1770.1,1769.8,3.2078]
[1743693806369,1.13039,1770.0,1769.7,0.00847817]
[1743693806572,1.13039,1770.0,1769.8,1.13047]
[1743693806868,1.13039,1770.0,1769.7,1.40337817]
[1743693807068,1.53987817,1770.1,1769.7,1.40337817]
[1743693807265,1.13041,1770.0,1769.8,4.3383]
[1743693807468,1.13041,1770.0,1769.8,1.1305]
[1743693807664,1.13041,1770.0,1769.9,40.8]
[1743693807863,1.13041,1770.0,1769.9,42.2575]
[1743693808261,1.13041,1770.0,1769.9,40.8]
[1743693808462,4.36565817,1770.1,1769.7,0.00847817]
[1743693808662,1.1305,1769.8,1769.7,1.46597817]
[1743693808864,1.1305,1769.8,1769.7,0.00847817]
[1743693809062,1.1305,1769.8,1769.7,40.80847817]
[1743693810761,1.1305,1769.8,1769.7,42.24927817]
[1743693810961,2.58245,1769.9,1769.7,43.37983817]
[1743693811162,5.5894,1770.0,1769.8,4.3383]
[1743693811460,5.5894,1770.0,1769.9,1.4408]
[1743693811461,5.9426,1770.0,1769.9,1.4408]
[1743693811766,1.4836,1770.0,1769.9,1.4408]
[1743693811970,1.13881817,1770.1,1769.9,1.4408]
[1743693812168,1.13037,1770.0,1769.9,1.4408]
[1743693812861,1.13043,1769.9,1769.8,3.2078]
[1743693813167,2.61403,1769.9,1769.8,4.6486]
[1743693813369,1.4836,1769.9,1769.8,5.7791]
[1743693813568,0.00847817,1770.1,1769.8,4.6486]
[1743693813764,1.13038,1770.0,1769.9,1.4458]
[1743693813973,0.00847817,1770.1,1770.0,1.13037]
[1743693814465,0.00847817,1770.1,1769.9,1.4458]
[1743693814661,0.00847817,1770.1,1770.0,4.33817]
[1743693814862,0.00847817,1770.1,1770.0,4.6536]
[1743693815063,1.13877817,1770.1,1770.0,4.6536]
[1743693815260,1.13877817,1770.1,1770.0,1.4458]
[1743693816170,1.13043,1769.9,1769.8,9.0318]
[1743693816465,1.13043,1769.9,1769.8,10.4776]
[1743693817375,2.66021,1770.0,1769.8,11.6081]
[1743693817668,2.66021,1770.0,1769.9,1.4031]
[1743693819373,4.46647817,1770.1,1770.0,1.13037]
[1743693819671,4.458,1770.7,1770.1,2.82571]
[1743693819869,1.13005,1770.5,1770.3,1.13012]
[1743693820069,1.4455,1770.6,1770.5,1.13005]
[1743693820277,0.7109,1770.7,1770.4,4.6064]
[1743693820873,0.71937817,1770.7,1770.5,1.13002]
[1743693821074,0.71937817,1770.7,1770.6,1.3986]
[1743693821370,3.29479817,1770.7,1770.6,1.3986]
[1743693821567,1.45397817,1770.7,1770.6,2.52858]
[1743693821869,1.13839817,1770.7,1770.6,1.3986]
[1743693822177,1.13839817,1770.7,1770.6,2.52858]
[1743693822467,0.00847817,1770.7,1770.6,1.3986]
[1743693822674,0.00847817,1770.7,1770.6,5.73638]
[1743693823270,0.00847817,1770.7,1770.6,8.23638]
[1743693823675,1.4768,1771.2,1770.7,2.82477]
[1743693823873,0.7278,1771.4,1771.1,1.12967]
[1743693824071,1.12959,1771.3,1771.2,43.4327]
[1743693824374,1.12954,1771.3,1771.2,42.3031]
[1743693824873,1.12954,1771.3,1771.2,43.4327]
[1743693825070,1.12954,1771.3,1771.2,42.3031]
[1743693825376,2.61479817,1771.4,1771.2,43.4327]
[1743693825570,1.48527817,1771.4,1771.2,42.3031]
[1743693825775,2.61480817,1771.4,1771.2,43.43269]
[1743693825976,2.61477817,1771.4,1771.2,43.43267]
[1743693826776,0.00847817,1771.4,1771.3,4.33734]
[1743693826971,0.00847817,1771.4,1771.3,5.07734]
[1743693827679,1.13794817,1771.4,1771.3,5.07734]
[1743693827876,0.00847817,1771.4,1771.3,5.07734]
[1743693828066,1.13794817,1771.4,1771.3,5.07734]
[1743693828269,1.13794817,1771.4,1771.3,3.9478]
[1743693828471,1.13794817,1771.4,1771.3,3.2078]
[1743693830375,1.12954,1771.3,1771.2,1.5031]
[1743693830968,1.1296,1771.2,1771.1,0.00847817]
[1743693831172,2.546,1771.2,1771.1,0.00847817]
[1743693833368,5.7538,1771.2,1771.1,0.00847817]
[1743693833575,12.7068,1771.2,1771.1,0.00847817]
[1743693833879,12.7068,1771.2,1770.6,1.86003]
[1743693833880,2.82444,1771.0,1770.6,1.12996]
[1743693834075,1.12986,1770.8,1770.7,1.3857]
[1743693834879,1.12992,1770.7,1770.6,0.00847817]
[1743693836579,3.62992,1770.7,1770.6,0.00847817]
[1743693836977,1.13011,1770.4,1770.3,1.5]
[1743693837674,1.13011,1770.4,1770.3,42.3]
[1743693837874,2.62451,1770.4,1770.3,42.3]
[1743693838578,1.13018,1770.3,1770.2,0.00847817]
[1743693838774,6.98238,1770.3,1770.2,0.00847817]
[1743693839581,2.53038,1770.3,1770.2,0.00847817]
[1743693841884,1.13862817,1770.4,1770.2,1.13871817]
[1743693842184,1.13862817,1770.4,1770.3,1.5034]
[1743693842385,0.00847817,1770.4,1770.3,1.5034]
[1743693842581,0.00847817,1770.4,1770.3,5.13358]
[1743693842776,0.00847817,1770.4,1770.3,12.42478]
[1743693842975,1.12989,1770.8,1770.6,1.12994]
[1743693843179,2.58232,1770.9,1770.7,1.5034]
[1743693843380,1.12982,1770.9,1770.8,40.8]
[1743693843777,1.4525,1771.0,1770.8,40.8]
[1743693843984,2.58223,1771.0,1770.9,1.5034]
[1743693844375,1.12973,1771.0,1770.9,1.5034]
[1743693845082,0.00847817,1771.1,1771.0,1.12973]
[1743693845383,0.00847817,1771.1,1771.0,4.33753]
[1743693845593,0.00847817,1771.1,1771.0,5.73143]
[1743693846286,0.00847817,1771.1,1771.0,8.23143]
[1743693846581,0.00847817,1771.1,1771.0,49.03143]
[1743693846787,1.85835,1771.5,1771.4,1.12947]
[1743693846987,1.12947,1771.4,1771.3,4.33728]
[1743693847391,1.12947,1771.4,1771.3,3.2078]
[1743693847590,2.64387,1771.4,1771.3,3.2078]
[1743693847889,2.64387,1771.4,1771.3,4.33734]
[1743693848083,2.64387,1771.4,1771.3,3.2078]
[1743693848487,1.12954,1771.3,1771.2,1.39847817]
[1743693848689,2.64394,1771.3,1771.2,1.39847817]
[1743693850282,2.64394,1771.3,1771.2,2.52807817]
[1743693850488,2.64394,1771.3,1771.2,1.39847817]
[1743693852595,2.64394,1771.3,1771.2,0.00847817]
[1743693854389,5.14394,1771.3,1771.2,0.00847817]
[1743693854593,2.82429,1771.1,1770.7,2.56172]
[1743693854799,2.2301,1771.0,1770.7,1.4318]
[1743693854988,1.12986,1770.8,1770.7,1.4318]
[1743693855388,2.82449,1770.9,1770.4,5.7676]
[1743693855591,1.13004,1770.6,1770.5,1.44027817]
[1743693855895,1.13004,1770.6,1770.5,0.00847817]
[1743693856085,1.84834,1770.6,1770.5,0.00847817]
[1743693856795,1.13018,1770.3,1770.2,1.4318]
[1743693856997,1.13035,1770.1,1769.9,4.33821]
[1743693857296,1.13035,1770.1,1770.0,1.4199]
[1743693857597,1.13035,1770.1,1770.0,42.2199]
[1743693857795,3.2078,1770.1,1769.6,3.2078]
[1743693858095,1.13056,1769.7,1769.6,3.2078]
[1743693858298,1.13062,1769.6,1769.5,1.4199]
[1743693858598,2.52362,1769.6,1769.5,1.4199]
[1743693859686,2.52362,1769.6,1769.4,0.00847817]
[1743693859687,1.13069,1769.5,1769.4,0.00847817]
[1743693859890,2.62429,1769.5,1769.4,0.00847817]
[1743693860093,2.62429,1769.5,1769.4,1.41847817]
[1743693860792,2.62429,1769.5,1769.4,0.00847817]
[1743693861700,1.13075,1769.4,1769.3,40.8]
[1743693861891,1.13102,1769.0,1768.8,10.4418]
[1743693862092,1.13102,1769.0,1768.9,1.41]
[1743693862290,1.13101,1769.0,1768.9,1.41]
[1743693862799,1.13101,1769.0,1768.9,42.21]
[1743693863501,2.57091,1769.0,1768.9,42.21]
[1743693863698,2.57091,1769.0,1768.9,40.8]
[1743693864094,2.57091,1769.0,1768.9,42.2614]
[1743693864501,1.13107,1768.9,1768.8,0.00847817]
[1743693864697,7.01897,1768.9,1768.8,0.00847817]
[1743693867801,7.01897,1768.9,1768.8,40.80847817]
[1743693869712,9.51897,1768.9,1768.8,40.80847817]
[1743693870096,7.01897,1768.9,1768.8,40.80847817]
[1743693870498,9.51897,1768.9,1768.8,40.80847817]
[1743693872005,9.51897,1768.9,1768.8,0.00847817]
[1743693874304,7.01897,1768.9,1768.8,0.00847817]
[1743693877504,1.13107,1768.9,1768.8,0.00847817]
[1743693878309,2.61207,1768.9,1768.8,0.00847817]
[1743693879208,1.13107,1768.9,1768.8,0.00847817]
[1743693880215,2.61207,1768.9,1768.8,0.00847817]
[1743693882413,1.13107,1768.9,1768.8,0.00847817]
[1743693885829,0.00847817,1769.1,1768.8,0.00847817]
[1743693886035,0.00847817,1769.1,1769.0,1.13101]
[1743693886533,0.00847817,1769.1,1769.0,2.66491]
[1743693886724,0.00847817,1769.1,1769.0,5.16491]
[1743693888324,1.13941817,1769.1,1769.0,1.5339]
[1743693888727,1.13941817,1769.1,1769.0,2.66491]
[1743693891134,1.13941817,1769.1,1769.0,1.5339]
[1743693892635,0.00847817,1769.1,1769.0,2.66491]
[1743693893031,0.00847817,1769.1,1769.0,5.16491]
[1743693893736,1.13074,1769.5,1769.4,1.13075]
[1743693894044,1.1306,1769.7,1769.6,1.13057]
[1743693894843,1.1306,1769.7,1769.6,0.6944]
[1743693895238,1.1306,1769.7,1769.6,1.82502]
[1743693895537,1.13903817,1769.8,1769.7,1.13056]
[1743693895738,1.13903817,1769.8,1769.7,2.58946]
[1743693896835,0.00847817,1769.8,1769.7,5.79726]
[1743693897041,0.00847817,1769.8,1769.7,8.29726]
[1743693897243,1.13024,1770.2,1770.1,1.13027]
[1743693897438,1.13023,1770.3,1770.1,1.13027]
[1743693897633,1.499,1770.6,1770.2,1.478]
[1743693897836,8.65234,1770.7,1770.3,44.0078]